Date-Occurred,Department,Supplier,Net,Purpose,Merchant-Category
31/03/2017,Premises Management,EDMUNDSON ELECTRIC,78.21,Repair & Maintenance,Building Services
31/03/2017,Premises Management,EDMUNDSON ELECTRIC,33.24,Repair & Maintenance,Building Services
31/03/2017,Premises Management,EDMUNDSON ELECTRIC,23.44,Repair & Maintenance,Building Services
31/03/2017,Premises Management,EDMUNDSON ELECTRIC,129.54,Repair & Maintenance,Building Services
31/03/2017,Premises Management,EDMUNDSON ELECTRIC,88.77,Repair & Maintenance,Building Services
31/03/2017,Premises Management,EDMUNDSON ELECTRIC,111.54,Repair & Maintenance,Building Services
31/03/2017,Premises Management,EDMUNDSON ELECTRIC,176.95,Repair & Maintenance,Building Services
31/03/2017,Premises Management,EDMUNDSON ELECTRIC,56.44,Repair & Maintenance,Building Services
31/03/2017,Premises Management,EDMUNDSON ELECTRIC,15.12,Repair & Maintenance,Building Services
03/04/2017,Premises Management,B & Q 1297,10.67,Repair & Maintenance,Building Services
03/04/2017,Premises Management,B.E.S. ELECTRICAL WHOL,24.74,Repair & Maintenance,Building Services
03/04/2017,Premises Management,BURDENS,40.3,Repair & Maintenance,Building Services
03/04/2017,Premises Management,CROSSLING CMB LTD,51.26,Repair & Maintenance,Building Services
03/04/2017,Premises Management,CROSSLING CMB LTD,9.41,Repair & Maintenance,Building Services
03/04/2017,Premises Management,EDMUNDSON ELECTRIC,5.8,Repair & Maintenance,Building Services
03/04/2017,Premises Management,EDMUNDSON ELECTRIC,15.42,Repair & Maintenance,Building Services
03/04/2017,Premises Management,EDMUNDSON ELECTRIC,429.31,Repair & Maintenance,Building Services
03/04/2017,Premises Management,EDMUNDSON ELECTRIC,123.21,Repair & Maintenance,Building Services
03/04/2017,Premises Management,EYRE & ELLISTON LTD,17.52,Repair & Maintenance,Building Services
03/04/2017,Premises Management,EYRE & ELLISTON LTD,3.06,Repair & Maintenance,Building Services
03/04/2017,Premises Management,J BEATTIE & SON LT,28.8,Repair & Maintenance,Building Services
03/04/2017,Premises Management,J BEATTIE & SON LT,15.9,Repair & Maintenance,Building Services
03/04/2017,Premises Management,J BEATTIE & SON LT,47,Repair & Maintenance,Building Services
03/04/2017,Premises Management,MAPLIN AINTREE L9,29.98,Repair & Maintenance,Building Services
03/04/2017,Premises Management,MERSEYSIDE ELECTRICAL,94.5,Repair & Maintenance,Building Services
03/04/2017,Premises Management,THOMAS AND NELSON,11,Repair & Maintenance,Building Services
04/04/2017,Culture Liverpool,123 REG,168.86,Renewal of domains,Marketing
04/04/2017,Premises Management,B & Q 1297,21.97,Repair & Maintenance,Building Services
04/04/2017,Premises Management,BEERS BOUNDARY STREET,42.57,Repair & Maintenance,Building Services
04/04/2017,Premises Management,BEERS BOUNDARY STREET,22.13,Repair & Maintenance,Building Services
04/04/2017,Premises Management,BEESLEY & FILDES,7.96,Repair & Maintenance,Building Services
04/04/2017,Premises Management,CHADWICKS,21,Repair & Maintenance,Building Services
04/04/2017,Premises Management,EYRE & ELLISTON LTD,134.4,Repair & Maintenance,Building Services
04/04/2017,Premises Management,LLOYD & JONES ENGINEER,18.19,Repair & Maintenance,Building Services
04/04/2017,Premises Management,MERSEYSIDE ELECTRICAL,100.4,Repair & Maintenance,Building Services
04/04/2017,Premises Management,PIPE/CLIMATE CENTER ZK,366.96,Repair & Maintenance,Building Services
04/04/2017,Premises Management,PIPE/CLIMATE CENTER ZK,2550.86,Repair & Maintenance,Building Services
04/04/2017,Premises Management,PIPE/CLIMATE CENTER ZK,1920,Repair & Maintenance,Building Services
04/04/2017,Premises Management,R HASTINGS AND SON CONT,32.96,Repair & Maintenance,Building Services
04/04/2017,Premises Management,TASKERS WAVERTREE,32.43,Repair & Maintenance,Building Services
05/04/2017,Culture Liverpool,HOOTESUITE,111.28,Social Media Renewal,Marketing
05/04/2017,Premises Management,ADI-GARDINER LTD,20.92,Repair & Maintenance,Building Services
05/04/2017,Premises Management,B & Q 1132,5.83,Repair & Maintenance,Building Services
05/04/2017,Premises Management,B & Q 1297,40,Repair & Maintenance,Building Services
05/04/2017,Premises Management,BEERS BOUNDARY STREET,39.98,Repair & Maintenance,Building Services
05/04/2017,Premises Management,BEERS BOUNDARY STREET,67.25,Repair & Maintenance,Building Services
05/04/2017,Premises Management,BEERS BOUNDARY STREET,12.75,Repair & Maintenance,Building Services
05/04/2017,Premises Management,EDMUNDSON ELECTRIC,8.04,Repair & Maintenance,Building Services
05/04/2017,Premises Management,EDMUNDSON ELECTRIC,21.6,Repair & Maintenance,Building Services
05/04/2017,Premises Management,EDMUNDSON ELECTRIC,124.04,Repair & Maintenance,Building Services
05/04/2017,Premises Management,EDMUNDSON ELECTRIC,23.44,Repair & Maintenance,Building Services
05/04/2017,Premises Management,EDMUNDSON ELECTRIC,58.33,Repair & Maintenance,Building Services
05/04/2017,Premises Management,EDMUNDSON ELECTRIC,9.33,Repair & Maintenance,Building Services
05/04/2017,Premises Management,EDMUNDSON ELECTRIC,45.84,Repair & Maintenance,Building Services
05/04/2017,Premises Management,H BOWERS LTD,243.6,Repair & Maintenance,Building Services
05/04/2017,Premises Management,J BEATTIE & SON LT,47,Repair & Maintenance,Building Services
05/04/2017,Premises Management,J BEATTIE & SON LT,125.63,Repair & Maintenance,Building Services
05/04/2017,Premises Management,KEN KNIGHT (NW) LTD,200,Repair & Maintenance,Building Services
05/04/2017,Premises Management,KEN KNIGHT (NW) LTD,245,Repair & Maintenance,Building Services
05/04/2017,Premises Management,MERSEYSIDE ELECTRICAL,112.93,Repair & Maintenance,Building Services
05/04/2017,Premises Management,MERSEYSIDE ELECTRICAL,124.5,Repair & Maintenance,Building Services
05/04/2017,Premises Management,MERSEYSIDE ELECTRICAL,77.94,Repair & Maintenance,Building Services
05/04/2017,Premises Management,MERSEYSIDE ELECTRICAL,146.9,Repair & Maintenance,Building Services
05/04/2017,Premises Management,MERSEYSIDE ELECTRICAL,92.5,Repair & Maintenance,Building Services
05/04/2017,Premises Management,NEWEY & EYRE,210.71,Repair & Maintenance,Building Services
05/04/2017,Premises Management,ONE STOP HIRE LIVERP,20,Repair & Maintenance,Building Services
05/04/2017,Premises Management,ONE STOP HIRE LIVERP,56.79,Repair & Maintenance,Building Services
05/04/2017,Premises Management,PINNACLE ELECTRICA,240,Repair & Maintenance,Building Services
05/04/2017,Premises Management,PIPE/CLIMATE CENTER ZK,242.75,Repair & Maintenance,Building Services
05/04/2017,Premises Management,RAPID,6.48,Repair & Maintenance,Building Services
05/04/2017,Premises Management,SCREWFIX,19.38,Repair & Maintenance,Building Services
05/04/2017,Premises Management,TOOLSTATION LTD,6.36,Repair & Maintenance,Building Services
05/04/2017,Premises Management,TOOLSTATION LTD,1.88,Repair & Maintenance,Building Services
05/04/2017,Premises Management,York And Young Ltd,10.36,Repair & Maintenance,Building Services
06/04/2017,Adult Services,FCO,35.5,Passport appointment,Government Services
06/04/2017,Communications,The London Gazette,53.3,Public Notice,Print & Advertising
06/04/2017,Premises Management,BEESLEY & FILDES,11.86,Repair & Maintenance,Building Services
06/04/2017,Premises Management,CHADWICKS,75.05,Repair & Maintenance,Building Services
06/04/2017,Premises Management,CHADWICKS,46.56,Repair & Maintenance,Building Services
06/04/2017,Premises Management,CROSSLING CMB LTD,34.55,Repair & Maintenance,Building Services
06/04/2017,Premises Management,CROSSLING CMB LTD,51.26,Repair & Maintenance,Building Services
06/04/2017,Premises Management,DULUX DECORATOR CENTRE,380.92,Repair & Maintenance,Building Services
06/04/2017,Premises Management,J BEATTIE & SON LT,240.01,Repair & Maintenance,Building Services
06/04/2017,Premises Management,J BEATTIE & SON LT,-240.01,Repair & Maintenance,Building Services
06/04/2017,Premises Management,MERSEYSIDE ELECTRICAL,56.5,Repair & Maintenance,Building Services
06/04/2017,Premises Management,MERSEYSIDE ELECTRICAL,56.85,Repair & Maintenance,Building Services
06/04/2017,Premises Management,R HASTINGS AND SON CONT,24.28,Repair & Maintenance,Building Services
06/04/2017,Premises Management,R HASTINGS AND SON CONT,41.46,Repair & Maintenance,Building Services
06/04/2017,Premises Management,RINUS ROOFING SUPPLIES,135.75,Repair & Maintenance,Building Services
06/04/2017,Premises Management,SCREWFIX DIRECT LT,29.07,Repair & Maintenance,Building Services
06/04/2017,Premises Management,SPARES CENTRE LTD,296.4,Repair & Maintenance,Building Services
06/04/2017,Premises Management,SPARES CENTRE LTD,29.09,Repair & Maintenance,Building Services
06/04/2017,Premises Management,TARGET ELECTRICAL SUPP,39.52,Repair & Maintenance,Building Services
06/04/2017,Premises Management,TERRYS TIMBER,53.9,Repair & Maintenance,Building Services
06/04/2017,Premises Management,TERRYS TIMBER,297.04,Repair & Maintenance,Building Services
07/04/2017,Adult Services,WALTHAM FOREST BC,10,Birth Certificate,Government Services
07/04/2017,Premises Management,BEERS BOUNDARY STREET,26,Repair & Maintenance,Building Services
07/04/2017,Premises Management,CHADWICKS,16.95,Repair & Maintenance,Building Services
07/04/2017,Premises Management,CROSSLING CMB LTD,7.11,Repair & Maintenance,Building Services
07/04/2017,Premises Management,CROSSLING CMB LTD,33.48,Repair & Maintenance,Building Services
07/04/2017,Premises Management,EDMUNDSON ELECTRIC,40.75,Repair & Maintenance,Building Services
07/04/2017,Premises Management,EDMUNDSON ELECTRIC,69.64,Repair & Maintenance,Building Services
07/04/2017,Premises Management,EDMUNDSON ELECTRIC,123.63,Repair & Maintenance,Building Services
07/04/2017,Premises Management,J BEATTIE & SON LT,21.96,Repair & Maintenance,Building Services
07/04/2017,Premises Management,J BEATTIE & SON LT,12.58,Repair & Maintenance,Building Services
07/04/2017,Premises Management,J BEATTIE & SON LT,25.02,Repair & Maintenance,Building Services
07/04/2017,Premises Management,J BEATTIE & SON LT,28.5,Repair & Maintenance,Building Services
07/04/2017,Premises Management,J BEATTIE & SON LT,19,Repair & Maintenance,Building Services
07/04/2017,Premises Management,MERSEYSIDE ELECTRICAL,251.5,Repair & Maintenance,Building Services
07/04/2017,Premises Management,RAPID,11.88,Repair & Maintenance,Building Services
07/04/2017,Premises Management,SCREWFIX,55.15,Repair & Maintenance,Building Services
07/04/2017,Premises Management,TARGET ELECTRICAL SUPP,16.87,Repair & Maintenance,Building Services
07/04/2017,Premises Management,TARGET ELECTRICAL SUPP,15,Repair & Maintenance,Building Services
07/04/2017,Premises Management,TASKERS WAVERTREE,6.65,Repair & Maintenance,Building Services
10/04/2017,Information Technology,CLAS OHLSON,29.15,Label printer,Office Supplies
10/04/2017,Premises Management,EDMUNDSON ELECTRIC,347.57,Repair & Maintenance,Building Services
10/04/2017,Premises Management,EDMUNDSON ELECTRIC,16.78,Repair & Maintenance,Building Services
10/04/2017,Premises Management,KEN KNIGHT (NW) LTD,315,Repair & Maintenance,Building Services
10/04/2017,Premises Management,MERSEYSIDE ELECTRICAL,276,Repair & Maintenance,Building Services
10/04/2017,Premises Management,SMITHDOWN ELECTRICAL W,422.5,Repair & Maintenance,Building Services
10/04/2017,Premises Management,TOOLSTATION LTD,22.08,Repair & Maintenance,Building Services
10/04/2017,Premises Management,WWW.STS DISTRIBUTION L,98,Repair & Maintenance,Building Services
10/04/2017,Premises Management,York And Young Ltd,10,Repair & Maintenance,Building Services
11/04/2017,Premises Management,ADI-GARDINER LTD,33.48,Repair & Maintenance,Building Services
11/04/2017,Premises Management,ADI-GARDINER LTD,1710.48,Repair & Maintenance,Building Services
11/04/2017,Premises Management,ADI-GARDINER LTD,125.82,Repair & Maintenance,Building Services
11/04/2017,Premises Management,BSS GROUP PLC,196.3,Repair & Maintenance,Building Services
11/04/2017,Premises Management,CITY PLUMBING SUPP,438.75,Repair & Maintenance,Building Services
11/04/2017,Premises Management,CROSSLING CMB LTD,6.06,Repair & Maintenance,Building Services
11/04/2017,Premises Management,CROSSLING CMB LTD,12.61,Repair & Maintenance,Building Services
11/04/2017,Premises Management,J BEATTIE & SON LT,94.39,Repair & Maintenance,Building Services
11/04/2017,Premises Management,MAPLIN AINTREE L9,20.83,Repair & Maintenance,Building Services
11/04/2017,Premises Management,MAPLIN LIVERPOOL L7,9.99,Repair & Maintenance,Building Services
11/04/2017,Premises Management,PAYPAL  MAPLIN,108.33,Repair & Maintenance,Building Services
11/04/2017,Premises Management,PAYPAL  REMOTECONTR,44.15,Repair & Maintenance,Building Services
11/04/2017,Premises Management,TARGET ELECTRICAL SUPP,5,Repair & Maintenance,Building Services
11/04/2017,Premises Management,THOMAS AND NELSON,6.67,Repair & Maintenance,Building Services
11/04/2017,Premises Management,York And Young Ltd,6,Repair & Maintenance,Building Services
12/04/2017,Premises Management,B & Q 1132,21.34,Repair & Maintenance,Building Services
12/04/2017,Premises Management,CROSSLING CMB LTD,125.5,Repair & Maintenance,Building Services
12/04/2017,Premises Management,CROSSLING CMB LTD,12.25,Repair & Maintenance,Building Services
12/04/2017,Premises Management,CROSSLING CMB LTD,41.51,Repair & Maintenance,Building Services
12/04/2017,Premises Management,DULUX DECORATOR CENTRE,139.89,Repair & Maintenance,Building Services
12/04/2017,Premises Management,EDMUNDSON ELECTRIC,13.57,Repair & Maintenance,Building Services
12/04/2017,Premises Management,EDMUNDSON ELECTRIC,1.54,Repair & Maintenance,Building Services
12/04/2017,Premises Management,EDMUNDSON ELECTRIC,33.27,Repair & Maintenance,Building Services
12/04/2017,Premises Management,EDMUNDSON ELECTRIC,13.27,Repair & Maintenance,Building Services
12/04/2017,Premises Management,EDMUNDSON ELECTRIC,40.43,Repair & Maintenance,Building Services
12/04/2017,Premises Management,EDMUNDSON ELECTRIC,8.04,Repair & Maintenance,Building Services
12/04/2017,Premises Management,EDMUNDSON ELECTRIC,-61.81,Repair & Maintenance,Building Services
12/04/2017,Premises Management,EDMUNDSON ELECTRIC,154.31,Repair & Maintenance,Building Services
12/04/2017,Premises Management,EDMUNDSON ELECTRIC,154.31,Repair & Maintenance,Building Services
12/04/2017,Premises Management,HIRE AND SAFETY UK LTD,106.66,Repair & Maintenance,Building Services
12/04/2017,Premises Management,HIRE AND SAFETY UK LTD,194.4,Repair & Maintenance,Building Services
12/04/2017,Premises Management,HIRE AND SAFETY UK LTD,15.82,Repair & Maintenance,Building Services
12/04/2017,Premises Management,J BEATTIE & SON LT,94,Repair & Maintenance,Building Services
12/04/2017,Premises Management,KEN KNIGHT (NW) LTD,280,Repair & Maintenance,Building Services
12/04/2017,Premises Management,MERSEYSIDE ELECTRICAL,29.5,Repair & Maintenance,Building Services
12/04/2017,Premises Management,NEWEY & EYRE,93.43,Repair & Maintenance,Building Services
12/04/2017,Premises Management,SPARES CENTRE LTD,46.18,Repair & Maintenance,Building Services
12/04/2017,Premises Management,TARGET ELECTRICAL SUPP,14,Repair & Maintenance,Building Services
13/04/2017,Childrens Services,EUROLINES,333,Coach fares,Travel
13/04/2017,Premises Management,ADI-GARDINER LTD,103.98,Repair & Maintenance,Building Services
13/04/2017,Premises Management,BEERS BOUNDARY STREET,17.34,Repair & Maintenance,Building Services
13/04/2017,Premises Management,CROSSLING CMB LTD,680.35,Repair & Maintenance,Building Services
13/04/2017,Premises Management,EDMUNDSON ELECTRIC,24.12,Repair & Maintenance,Building Services
13/04/2017,Premises Management,EDMUNDSON ELECTRIC,223.46,Repair & Maintenance,Building Services
13/04/2017,Premises Management,HIRE AND SAFETY UK LTD,62,Repair & Maintenance,Building Services
13/04/2017,Premises Management,LLOYD & JONES ENGINEER,10.83,Repair & Maintenance,Building Services
13/04/2017,Premises Management,MERSEYSIDE ELECTRICAL,233.25,Repair & Maintenance,Building Services
13/04/2017,Premises Management,MERSEYSIDE ELECTRICAL,106.5,Repair & Maintenance,Building Services
13/04/2017,Premises Management,NORTHERN STAGE SERVICE,61.9,Repair & Maintenance,Building Services
13/04/2017,Premises Management,OFFICE OUTLET,29.97,Repair & Maintenance,Building Services
13/04/2017,Premises Management,PINNACLE ELECTRICA,10,Repair & Maintenance,Building Services
13/04/2017,Premises Management,SCREWFIX,4.75,Repair & Maintenance,Building Services
13/04/2017,Premises Management,SCREWFIX,154.5,Repair & Maintenance,Building Services
13/04/2017,Premises Management,SPARES CENTRE LTD,225,Repair & Maintenance,Building Services
13/04/2017,Premises Management,SPARES CENTRE LTD,393.63,Repair & Maintenance,Building Services
13/04/2017,Premises Management,TERRYS TIMBER,27.5,Repair & Maintenance,Building Services
13/04/2017,Premises Management,York And Young Ltd,24.17,Repair & Maintenance,Building Services
13/04/2017,Premises Management,York And Young Ltd,24.17,Repair & Maintenance,Building Services
18/04/2017,Premises Management,ADI-GARDINER LTD,21.43,Repair & Maintenance,Building Services
18/04/2017,Premises Management,B & Q 1297,18.38,Repair & Maintenance,Building Services
18/04/2017,Premises Management,CERTSURE LLP,32.5,Repair & Maintenance,Building Services
18/04/2017,Premises Management,EDMUNDSON ELECTRIC,9.51,Repair & Maintenance,Building Services
18/04/2017,Premises Management,EDMUNDSON ELECTRIC,45.86,Repair & Maintenance,Building Services
18/04/2017,Premises Management,EDMUNDSON ELECTRIC,226,Repair & Maintenance,Building Services
18/04/2017,Premises Management,EDMUNDSON ELECTRIC,20.71,Repair & Maintenance,Building Services
18/04/2017,Premises Management,EDMUNDSON ELECTRIC,46.2,Repair & Maintenance,Building Services
18/04/2017,Premises Management,EDMUNDSON ELECTRIC,555.6,Repair & Maintenance,Building Services
18/04/2017,Premises Management,EDMUNDSON ELECTRIC,451.75,Repair & Maintenance,Building Services
18/04/2017,Premises Management,EDMUNDSON ELECTRIC,13.38,Repair & Maintenance,Building Services
18/04/2017,Premises Management,J BEATTIE & SON LT,12.58,Repair & Maintenance,Building Services
18/04/2017,Premises Management,MERSEYSIDE ELECTRICAL,3.95,Repair & Maintenance,Building Services
18/04/2017,Premises Management,SCREWFIX,3.42,Repair & Maintenance,Building Services
18/04/2017,Premises Management,SCREWFIX,21.37,Repair & Maintenance,Building Services
18/04/2017,Premises Management,TAYLORGLASS LTD,28.5,Repair & Maintenance,Building Services
18/04/2017,Premises Management,TAYLORGLASS LTD,35,Repair & Maintenance,Building Services
18/04/2017,Premises Management,TAYLORGLASS LTD,55.5,Repair & Maintenance,Building Services
18/04/2017,Premises Management,THOMAS AND NELSON,5.17,Repair & Maintenance,Building Services
19/04/2017,Premises Management,ADI-GARDINER LTD,21.24,Repair & Maintenance,Building Services
19/04/2017,Premises Management,CROSSLING CMB LTD,18.72,Repair & Maintenance,Building Services
19/04/2017,Premises Management,J BEATTIE & SON LT,50.18,Repair & Maintenance,Building Services
19/04/2017,Premises Management,J BEATTIE & SON LT,106.64,Repair & Maintenance,Building Services
19/04/2017,Premises Management,J BEATTIE & SON LT,21.02,Repair & Maintenance,Building Services
19/04/2017,Premises Management,KEN KNIGHT (NW) LTD,140,Repair & Maintenance,Building Services
19/04/2017,Premises Management,KEN KNIGHT (NW) LTD,245,Repair & Maintenance,Building Services
19/04/2017,Premises Management,LLOYD & JONES ENGINEER,9.76,Repair & Maintenance,Building Services
19/04/2017,Premises Management,MERSEYSIDE ELECTRICAL,111,Repair & Maintenance,Building Services
19/04/2017,Premises Management,MERSEYSIDE ELECTRICAL,322.9,Repair & Maintenance,Building Services
19/04/2017,Premises Management,RINUS ROOFING SUPPLIES,435.99,Repair & Maintenance,Building Services
19/04/2017,Premises Management,RS COMPONENTS,84,Repair & Maintenance,Building Services
19/04/2017,Premises Management,SCREWFIX,21.29,Repair & Maintenance,Building Services
19/04/2017,Premises Management,TOOLSTATION LTD,14.16,Repair & Maintenance,Building Services
20/04/2017,Premises Management,ADI-GARDINER LTD,10.89,Repair & Maintenance,Building Services
20/04/2017,Premises Management,ADI-GARDINER LTD,8.74,Repair & Maintenance,Building Services
20/04/2017,Premises Management,CHADWICKS,40.2,Repair & Maintenance,Building Services
20/04/2017,Premises Management,CMB DISTRIBUTORS,16.67,Repair & Maintenance,Building Services
20/04/2017,Premises Management,CMB DISTRIBUTORS,833.33,Repair & Maintenance,Building Services
20/04/2017,Premises Management,CROSSLING CMB LTD,18.72,Repair & Maintenance,Building Services
20/04/2017,Premises Management,CROSSLING CMB LTD,142.45,Repair & Maintenance,Building Services
20/04/2017,Premises Management,CROSSLING CMB LTD,127.45,Repair & Maintenance,Building Services
20/04/2017,Premises Management,CROSSLING CMB LTD,25,Repair & Maintenance,Building Services
20/04/2017,Premises Management,EDMUNDSON ELECTRIC,52.79,Repair & Maintenance,Building Services
20/04/2017,Premises Management,EDMUNDSON ELECTRIC,18.89,Repair & Maintenance,Building Services
20/04/2017,Premises Management,EDMUNDSON ELECTRIC,116.02,Repair & Maintenance,Building Services
20/04/2017,Premises Management,EDMUNDSON ELECTRIC,8.04,Repair & Maintenance,Building Services
20/04/2017,Premises Management,MAPLIN AINTREE L9,24.99,Repair & Maintenance,Building Services
20/04/2017,Premises Management,MERSEYSIDE ELECTRICAL,126.7,Repair & Maintenance,Building Services
20/04/2017,Premises Management,PIPE/CLIMATE CENTER ZK,42.59,Repair & Maintenance,Building Services
20/04/2017,Premises Management,PIPE/CLIMATE CENTER ZK,202.66,Repair & Maintenance,Building Services
20/04/2017,Premises Management,PIPE/CLIMATE CENTER ZK,30.13,Repair & Maintenance,Building Services
20/04/2017,Premises Management,PIPE/CLIMATE CENTER ZK,12730.2,Repair & Maintenance,Building Services
20/04/2017,Premises Management,SCREWFIX,80.83,Repair & Maintenance,Building Services
20/04/2017,Premises Management,SCREWFIX,23.43,Repair & Maintenance,Building Services
20/04/2017,Premises Management,SCREWFIX,51.38,Repair & Maintenance,Building Services
20/04/2017,Premises Management,TARGET ELECTRICAL SUPP,14,Repair & Maintenance,Building Services
20/04/2017,Premises Management,WWW.TYSOFT.CO.UK,34.95,Repair & Maintenance,Building Services
20/04/2017,Premises Management,York And Young Ltd,24.17,Repair & Maintenance,Building Services
20/04/2017,Premises Management,York And Young Ltd,11.38,Repair & Maintenance,Building Services
21/04/2017,Premises Management,CMB DISTRIBUTORS,341.73,Repair & Maintenance,Building Services
21/04/2017,Premises Management,CMB DISTRIBUTORS,13.46,Repair & Maintenance,Building Services
21/04/2017,Premises Management,CROSSLING CMB LTD,5.05,Repair & Maintenance,Building Services
21/04/2017,Premises Management,EDMUNDSON ELECTRIC,5.02,Repair & Maintenance,Building Services
21/04/2017,Premises Management,EDMUNDSON ELECTRIC,20.88,Repair & Maintenance,Building Services
21/04/2017,Premises Management,EDMUNDSON ELECTRIC,26.71,Repair & Maintenance,Building Services
21/04/2017,Premises Management,EDMUNDSON ELECTRIC,19.41,Repair & Maintenance,Building Services
21/04/2017,Premises Management,EDMUNDSON ELECTRIC,84.18,Repair & Maintenance,Building Services
21/04/2017,Premises Management,EDMUNDSON ELECTRIC,40.43,Repair & Maintenance,Building Services
21/04/2017,Premises Management,EYRE & ELLISTON LTD,22.28,Repair & Maintenance,Building Services
21/04/2017,Premises Management,KEN KNIGHT (NW) LTD,240,Repair & Maintenance,Building Services
21/04/2017,Premises Management,MAPLIN AINTREE L9,20.83,Repair & Maintenance,Building Services
21/04/2017,Premises Management,MERSEYSIDE ELECTRICAL,110.5,Repair & Maintenance,Building Services
21/04/2017,Premises Management,SCREWFIX,14.81,Repair & Maintenance,Building Services
21/04/2017,Premises Management,TOOLSTATION LTD,32.43,Repair & Maintenance,Building Services
21/04/2017,Premises Management,TOOLSTATION LTD,2.97,Repair & Maintenance,Building Services
21/04/2017,Premises Management,York And Young Ltd,25,Repair & Maintenance,Building Services
23/04/2017,Premises Management,SCREWFIX,44.54,Repair & Maintenance,Building Services
23/04/2017,Premises Management,TOOLSTATION LTD,25.92,Repair & Maintenance,Building Services
24/04/2017,Adult Services,Assoc of Directors of Adult Social Services,499,ADASS Seminar,Conferences
24/04/2017,Adult Services,HM PASSPORT OFFICE,87,Passport application,Personal Services
24/04/2017,Chief Executive,MARKS & SPENCER,65.84,Laptop Bag,Office Supplies
24/04/2017,Premises Management,ADI-GARDINER LTD,933,Repair & Maintenance,Building Services
24/04/2017,Premises Management,CITY PLUMBING SUPP,27.63,Repair & Maintenance,Building Services
24/04/2017,Premises Management,CITY PLUMBING SUPP,8.03,Repair & Maintenance,Building Services
24/04/2017,Premises Management,CROSSLING CMB LTD,6.5,Repair & Maintenance,Building Services
24/04/2017,Premises Management,CROSSLING CMB LTD,48.89,Repair & Maintenance,Building Services
24/04/2017,Premises Management,EDMUNDSON ELECTRIC,525.64,Repair & Maintenance,Building Services
24/04/2017,Premises Management,EDMUNDSON ELECTRIC,46.13,Repair & Maintenance,Building Services
24/04/2017,Premises Management,EDMUNDSON ELECTRIC,52.22,Repair & Maintenance,Building Services
24/04/2017,Premises Management,EDMUNDSON ELECTRIC,22.88,Repair & Maintenance,Building Services
24/04/2017,Premises Management,J BEATTIE & SON LT,44.94,Repair & Maintenance,Building Services
24/04/2017,Premises Management,MAPLIN AINTREE L9,49.99,Repair & Maintenance,Building Services
24/04/2017,Premises Management,NEWEY & EYRE,12.93,Repair & Maintenance,Building Services
24/04/2017,Premises Management,PIPE/CLIMATE CENTER ZK,247.81,Repair & Maintenance,Building Services
24/04/2017,Premises Management,PIPE/CLIMATE CENTER ZK,-70.73,Repair & Maintenance,Building Services
24/04/2017,Premises Management,RAPID,7.48,Repair & Maintenance,Building Services
24/04/2017,Premises Management,SIGNS 3000 LTD,30,Repair & Maintenance,Building Services
25/04/2017,Premises Management,ADI-GARDINER LTD,110.87,Repair & Maintenance,Building Services
25/04/2017,Premises Management,ADI-GARDINER LTD,49.2,Repair & Maintenance,Building Services
25/04/2017,Premises Management,ADI-GARDINER LTD,12.95,Repair & Maintenance,Building Services
25/04/2017,Premises Management,CROSSLING CMB LTD,2.12,Repair & Maintenance,Building Services
25/04/2017,Premises Management,CROSSLING LTD,79.32,Repair & Maintenance,Building Services
25/04/2017,Premises Management,CROSSLING LTD,2.25,Repair & Maintenance,Building Services
25/04/2017,Premises Management,EDMUNDSON ELECTRIC,35.6,Repair & Maintenance,Building Services
25/04/2017,Premises Management,EDMUNDSON ELECTRIC,400.94,Repair & Maintenance,Building Services
25/04/2017,Premises Management,EDMUNDSON ELECTRIC,12.57,Repair & Maintenance,Building Services
25/04/2017,Premises Management,EDMUNDSON ELECTRIC,9.14,Repair & Maintenance,Building Services
25/04/2017,Premises Management,EDMUNDSON ELECTRIC,98.73,Repair & Maintenance,Building Services
25/04/2017,Premises Management,EYRE & ELLISTON LTD,455,Repair & Maintenance,Building Services
25/04/2017,Premises Management,HUWS GRAY LIMITED,11.31,Repair & Maintenance,Building Services
25/04/2017,Premises Management,MERSEYSIDE ELECTRICAL,58.95,Repair & Maintenance,Building Services
25/04/2017,Premises Management,ONBUYCOMENERGIZEDCUS,13.29,Repair & Maintenance,Building Services
25/04/2017,Premises Management,PARTS CENTER 3H,75.94,Repair & Maintenance,Building Services
25/04/2017,Premises Management,TASKERS WAVERTREE,15.38,Repair & Maintenance,Building Services
25/04/2017,Premises Management,TASKERS WAVERTREE,13.29,Repair & Maintenance,Building Services
25/04/2017,Premises Management,TAYLORGLASS LTD,54.8,Repair & Maintenance,Building Services
25/04/2017,Premises Management,TAYLORGLASS LTD,138.5,Repair & Maintenance,Building Services
26/04/2017,Information Technology,FASTHOSTS INTERNET Ltd,6.99,Renewal of domain,ICT
26/04/2017,Premises Management,ADI-GARDINER LTD,65.04,Repair & Maintenance,Building Services
26/04/2017,Premises Management,ADI-GARDINER LTD,24.6,Repair & Maintenance,Building Services
26/04/2017,Premises Management,B.E.S. ELECTRICAL WHOL,6626.17,Repair & Maintenance,Building Services
26/04/2017,Premises Management,CHADWICKS,40.75,Repair & Maintenance,Building Services
26/04/2017,Premises Management,CITY PLUMBING SUPP,302.68,Repair & Maintenance,Building Services
26/04/2017,Premises Management,CITY PLUMBING SUPP,5.2,Repair & Maintenance,Building Services
26/04/2017,Premises Management,CPC,24.03,Repair & Maintenance,Building Services
26/04/2017,Premises Management,CROSSLING CMB LTD,35.52,Repair & Maintenance,Building Services
26/04/2017,Premises Management,CROSSLING CMB LTD,13.94,Repair & Maintenance,Building Services
26/04/2017,Premises Management,EDMUNDSON ELECTRIC,83.37,Repair & Maintenance,Building Services
26/04/2017,Premises Management,EDMUNDSON ELECTRIC,1091.65,Repair & Maintenance,Building Services
26/04/2017,Premises Management,EDMUNDSON ELECTRIC,31.55,Repair & Maintenance,Building Services
26/04/2017,Premises Management,EDMUNDSON ELECTRIC,547.93,Repair & Maintenance,Building Services
26/04/2017,Premises Management,EDMUNDSON ELECTRIC,105.79,Repair & Maintenance,Building Services
26/04/2017,Premises Management,EDMUNDSON ELECTRIC,560,Repair & Maintenance,Building Services
26/04/2017,Premises Management,EDMUNDSON ELECTRIC,526.92,Repair & Maintenance,Building Services
26/04/2017,Premises Management,EDMUNDSON ELECTRIC,251.38,Repair & Maintenance,Building Services
26/04/2017,Premises Management,EDMUNDSON ELECTRIC,12.95,Repair & Maintenance,Building Services
26/04/2017,Premises Management,EDMUNDSON ELECTRIC,26.69,Repair & Maintenance,Building Services
26/04/2017,Premises Management,EDMUNDSON ELECTRIC,31.32,Repair & Maintenance,Building Services
26/04/2017,Premises Management,HOME SECURE LOCK & GLA,15.55,Repair & Maintenance,Building Services
26/04/2017,Premises Management,KEN KNIGHT (NW) LTD,320,Repair & Maintenance,Building Services
26/04/2017,Premises Management,NEWEY & EYRE,10.83,Repair & Maintenance,Building Services
26/04/2017,Premises Management,PIPE/CLIMATE CENTER ZK,30.72,Repair & Maintenance,Building Services
26/04/2017,Premises Management,R HASTINGS AND SON CONT,23.3,Repair & Maintenance,Building Services
26/04/2017,Premises Management,RINUS ROOFING SUPPLIES,106.9,Repair & Maintenance,Building Services
26/04/2017,Premises Management,SCREWFIX,20.6,Repair & Maintenance,Building Services
26/04/2017,Premises Management,SPARES CENTRE LTD,349.4,Repair & Maintenance,Building Services
26/04/2017,Premises Management,TOOLSTATION LTD,32.33,Repair & Maintenance,Building Services
26/04/2017,Premises Management,TOOLSTATION LTD,5.33,Repair & Maintenance,Building Services
26/04/2017,Premises Management,WWW.CERTSURE.COM,140.43,Repair & Maintenance,Building Services
26/04/2017,Premises Management,WWW.INDIGOSHOP.CO.UK,321,Repair & Maintenance,Building Services
26/04/2017,Premises Management,WWW.MAPLIN.CO.UK,216.65,Repair & Maintenance,Building Services
26/04/2017,Premises Management,WWW.TYSOFT.CO.UK,34.95,Repair & Maintenance,Building Services
27/04/2017,Premises Management,ADI-GARDINER LTD,-645.74,Repair & Maintenance,Building Services
27/04/2017,Premises Management,ADI-GARDINER LTD,273.56,Repair & Maintenance,Building Services
27/04/2017,Premises Management,B.E.S. ELECTRICAL WHOL,520,Repair & Maintenance,Building Services
27/04/2017,Premises Management,B.E.S. ELECTRICAL WHOL,18,Repair & Maintenance,Building Services
27/04/2017,Premises Management,B.E.S. ELECTRICAL WHOL,184.5,Repair & Maintenance,Building Services
27/04/2017,Premises Management,B.E.S. ELECTRICAL WHOL,9.56,Repair & Maintenance,Building Services
27/04/2017,Premises Management,B.E.S. ELECTRICAL WHOL,121.5,Repair & Maintenance,Building Services
27/04/2017,Premises Management,B.E.S. ELECTRICAL WHOL,93.76,Repair & Maintenance,Building Services
27/04/2017,Premises Management,BEERS BOUNDARY STREET,96.31,Repair & Maintenance,Building Services
27/04/2017,Premises Management,CROSSLING CMB LTD,25.16,Repair & Maintenance,Building Services
27/04/2017,Premises Management,CROSSLING CMB LTD,2.51,Repair & Maintenance,Building Services
27/04/2017,Premises Management,CROSSLING CMB LTD,17,Repair & Maintenance,Building Services
27/04/2017,Premises Management,EDMUNDSON ELECTRIC,37,Repair & Maintenance,Building Services
27/04/2017,Premises Management,EDMUNDSON ELECTRIC,20.88,Repair & Maintenance,Building Services
27/04/2017,Premises Management,EDMUNDSON ELECTRIC,3.67,Repair & Maintenance,Building Services
27/04/2017,Premises Management,EDMUNDSON ELECTRIC,357.92,Repair & Maintenance,Building Services
27/04/2017,Premises Management,EDMUNDSON ELECTRIC,66.12,Repair & Maintenance,Building Services
27/04/2017,Premises Management,EDMUNDSON ELECTRIC,18.5,Repair & Maintenance,Building Services
27/04/2017,Premises Management,EDMUNDSON ELECTRIC,58.4,Repair & Maintenance,Building Services
27/04/2017,Premises Management,EDMUNDSON ELECTRIC,5.86,Repair & Maintenance,Building Services
27/04/2017,Premises Management,EDMUNDSON ELECTRIC,347.8,Repair & Maintenance,Building Services
27/04/2017,Premises Management,EDMUNDSON ELECTRIC,22.08,Repair & Maintenance,Building Services
27/04/2017,Premises Management,EYRE & ELLISTON LTD,8.66,Repair & Maintenance,Building Services
27/04/2017,Premises Management,HOWDENS - LIVERPOOL D7,313.78,Repair & Maintenance,Building Services
27/04/2017,Premises Management,HUWS GRAY LIMITED,114.75,Repair & Maintenance,Building Services
27/04/2017,Premises Management,LLOYD & JONES ENGINEER,13.49,Repair & Maintenance,Building Services
27/04/2017,Premises Management,LLOYD & JONES ENGINEER,27,Repair & Maintenance,Building Services
27/04/2017,Premises Management,NEW KEY TRADING SERVIC,15,Repair & Maintenance,Building Services
27/04/2017,Premises Management,NORTHERN REFRIGERATION,61.24,Repair & Maintenance,Building Services
27/04/2017,Premises Management,ONE STOP HIRE LIVERP,120,Repair & Maintenance,Building Services
27/04/2017,Premises Management,SCREWFIX,3.7,Repair & Maintenance,Building Services
27/04/2017,Premises Management,SPARES CENTRE LTD,345.25,Repair & Maintenance,Building Services
27/04/2017,Premises Management,THOMAS AND NELSON,6.47,Repair & Maintenance,Building Services
27/04/2017,Premises Management,TOOLSTATION LTD,24.66,Repair & Maintenance,Building Services
27/04/2017,Premises Management,WWW.FINERFILTERS.CO.UK,121.6,Repair & Maintenance,Building Services
27/04/2017,Premises Management,York And Young Ltd,34.16,Repair & Maintenance,Building Services
28/04/2017,Premises Management,BEERS BOUNDARY STREET,26.32,Repair & Maintenance,Building Services
28/04/2017,Premises Management,BEERS BOUNDARY STREET,25.53,Repair & Maintenance,Building Services
28/04/2017,Premises Management,BEERS BOUNDARY STREET,13.14,Repair & Maintenance,Building Services
28/04/2017,Premises Management,J BEATTIE & SON LT,12.58,Repair & Maintenance,Building Services
28/04/2017,Premises Management,J BEATTIE & SON LT,47,Repair & Maintenance,Building Services
28/04/2017,Premises Management,J BEATTIE & SON LT,12.99,Repair & Maintenance,Building Services
28/04/2017,Premises Management,J BEATTIE & SON LT,13.89,Repair & Maintenance,Building Services
28/04/2017,Premises Management,J BEATTIE & SON LT,47,Repair & Maintenance,Building Services
28/04/2017,Premises Management,KEN KNIGHT (NW) LTD,140,Repair & Maintenance,Building Services
28/04/2017,Premises Management,LLOYD & JONES ENGINEER,16.2,Repair & Maintenance,Building Services
28/04/2017,Premises Management,TASKERS WAVERTREE,13.29,Repair & Maintenance,Building Services
30/04/2017,Culture Liverpool,FACEBOOK,7.96,Advertising,Marketing
